[Event "Early-Titled-Tuesday-Blitz-January-30-2024"]
[Site "Chess.com"]
[Date "2024.01.30"]
[Round "1"]
[White "DenLaz"]
[Black "santosalberto1987"]
[Result "1-0"]
[WhiteElo "3080"]
[BlackElo "2541"]
[TimeControl "180+1"]
[EndTime "8:07:04 PST"]
[Termination "DenLaz won by checkmate"]

1. d4 {[%clk 0:03:00.9]} 1... Nf6 {[%clk 0:02:59.9]} 2. c4 {[%clk 0:03:01.5]}
2... d6 {[%clk 0:03:00.2]} 3. Nf3 {[%clk 0:03:01.8]} 3... Nbd7 {[%clk
0:02:59.7]} 4. Nc3 {[%clk 0:03:02.4]} 4... e5 {[%clk 0:02:59.5]} 5. g3 {[%clk
0:03:03.1]} 5... g6 {[%clk 0:02:56.2]} 6. Bg2 {[%clk 0:03:03]} 6... Bg7 {[%clk
0:02:56.5]} 7. O-O {[%clk 0:03:03.7]} 7... O-O {[%clk 0:02:56.7]} 8. e4 {[%clk
0:03:04.4]} 8... Re8 {[%clk 0:02:52.8]} 9. h3 {[%clk 0:03:04.2]} 9... a6 {[%clk
0:02:52]} 10. Be3 {[%clk 0:02:56.6]} 10... Rb8 {[%clk 0:02:51.8]} 11. Qc2 {[%clk
0:02:49.3]} 11... c6 {[%clk 0:02:47.8]} 12. Rfd1 {[%clk 0:02:46.9]} 12... Qe7
{[%clk 0:02:44.4]} 13. Rac1 {[%clk 0:02:15.6]} 13... b5 {[%clk 0:02:44.1]} 14.
dxe5 {[%clk 0:02:11.9]} 14... dxe5 {[%clk 0:02:43.9]} 15. Nd2 {[%clk 0:02:01.1]}
15... Nf8 {[%clk 0:02:27.6]} 16. Nb3 {[%clk 0:01:57.2]} 16... Ne6 {[%clk
0:02:26.3]} 17. Ne2 {[%clk 0:01:53.9]} 17... Bb7 {[%clk 0:02:02.9]} 18. Na5
{[%clk 0:01:52.5]} 18... Nd7 {[%clk 0:01:41.6]} 19. c5 {[%clk 0:01:39.1]} 19...
Nf6 {[%clk 0:01:31.8]} 20. b4 {[%clk 0:01:35.2]} 20... Red8 {[%clk 0:01:25.3]}
21. Rxd8+ {[%clk 0:01:32.5]} 21... Rxd8 {[%clk 0:01:24.7]} 22. Rd1 {[%clk
0:01:33.1]} 22... Ba8 {[%clk 0:01:15]} 23. a3 {[%clk 0:01:27.5]} 23... Rxd1+
{[%clk 0:01:14.1]} 24. Qxd1 {[%clk 0:01:26.9]} 24... Qd8 {[%clk 0:01:14.1]} 25.
Qxd8+ {[%clk 0:01:20.9]} 25... Nxd8 {[%clk 0:01:15]} 26. f3 {[%clk 0:01:19.7]}
26... Kf8 {[%clk 0:01:14.7]} 27. h4 {[%clk 0:01:17.9]} 27... Ke7 {[%clk
0:01:08.2]} 28. Bh3 {[%clk 0:01:18.1]} 28... Ne6 {[%clk 0:01:07.1]} 29. Kf2
{[%clk 0:01:17.1]} 29... Nd7 {[%clk 0:01:02]} 30. Nc1 {[%clk 0:01:15.4]} 30...
Nd4 {[%clk 0:00:55.2]} 31. Bxd4 {[%clk 0:01:01.7]} 31... exd4 {[%clk 0:00:55.3]}
32. Bxd7 {[%clk 0:01:02.3]} 32... Kxd7 {[%clk 0:00:55.2]} 33. Nd3 {[%clk
0:01:02.9]} 33... f5 {[%clk 0:00:49.5]} 34. exf5 {[%clk 0:00:32.4]} 34... gxf5
{[%clk 0:00:49.4]} 35. Ke2 {[%clk 0:00:33]} 35... Ke6 {[%clk 0:00:48.9]} 36.
Nf4+ {[%clk 0:00:33]} 36... Ke5 {[%clk 0:00:46.6]} 37. Kd3 {[%clk 0:00:33.6]}
37... Bh6 {[%clk 0:00:41.9]} 38. Ne2 {[%clk 0:00:31.1]} 38... Be3 {[%clk
0:00:35.4]} 39. f4+ {[%clk 0:00:30.5]} 39... Kd5 {[%clk 0:00:34.6]} 40. Nb3
{[%clk 0:00:31.1]} 40... Bb7 {[%clk 0:00:22.5]} 41. Nbxd4 {[%clk 0:00:30.9]}
41... Bc8 {[%clk 0:00:21]} 42. Nc3# {[%clk 0:00:29.9]} 1-0

[Event "Early-Titled-Tuesday-Blitz-January-30-2024"]
[Site "Chess.com"]
[Date "2024.01.30"]
[Round "1"]
[White "KIEV-1"]
[Black "crazy_but_lazy"]
[Result "1-0"]
[WhiteElo "2236"]
[BlackElo "2578"]
[TimeControl "180+1"]
[EndTime "8:07:07 PST"]
[Termination "KIEV-1 won by checkmate"]

1. e4 {[%clk 0:03:00.9]} 1... c5 {[%clk 0:02:56.6]} 2. Nf3 {[%clk 0:03:00.8]}
2... Nc6 {[%clk 0:02:51.2]} 3. d4 {[%clk 0:03:00.8]} 3... cxd4 {[%clk
0:02:51.2]} 4. Nxd4 {[%clk 0:03:01.7]} 4... g6 {[%clk 0:02:51.2]} 5. Nc3 {[%clk
0:03:02]} 5... Bg7 {[%clk 0:02:51.2]} 6. Be3 {[%clk 0:03:02.7]} 6... Nf6 {[%clk
0:02:50]} 7. f3 {[%clk 0:03:03.4]} 7... O-O {[%clk 0:02:49.7]} 8. Qd2 {[%clk
0:03:04.1]} 8... d5 {[%clk 0:02:49.6]} 9. Nxc6 {[%clk 0:03:04.9]} 9... bxc6
{[%clk 0:02:49.8]} 10. O-O-O {[%clk 0:03:05.6]} 10... e5 {[%clk 0:02:02.8]} 11.
exd5 {[%clk 0:03:01.2]} 11... cxd5 {[%clk 0:02:01.3]} 12. Nxd5 {[%clk
0:03:01.7]} 12... Be6 {[%clk 0:01:37.4]} 13. Bc4 {[%clk 0:02:19.3]} 13... Nd7
{[%clk 0:01:04.8]} 14. Bb3 {[%clk 0:02:15]} 14... a5 {[%clk 0:00:55.9]} 15. a4
{[%clk 0:02:15]} 15... Rb8 {[%clk 0:00:54.3]} 16. Kb1 {[%clk 0:02:11.6]} 16...
Re8 {[%clk 0:00:50.2]} 17. Rhe1 {[%clk 0:02:10.2]} 17... Qc8 {[%clk 0:00:50.1]}
18. Qxa5 {[%clk 0:02:08]} 18... Qb7 {[%clk 0:00:29]} 19. Rd2 {[%clk 0:01:55.6]}
19... Nf8 {[%clk 0:00:17.2]} 20. Red1 {[%clk 0:01:51.4]} 20... Rec8 {[%clk
0:00:17.5]} 21. Bc5 {[%clk 0:01:42.1]} 21... Bxd5 {[%clk 0:00:10.6]} 22. Rxd5
{[%clk 0:01:41.5]} 22... Ne6 {[%clk 0:00:10.5]} 23. Bd6 {[%clk 0:01:33.4]} 23...
Ra8 {[%clk 0:00:09.1]} 24. Qb5 {[%clk 0:01:32.9]} 24... Qa7 {[%clk 0:00:07.8]}
25. Bxe5 {[%clk 0:01:26.8]} 25... Bxe5 {[%clk 0:00:07.2]} 26. Rxe5 {[%clk
0:01:26.1]} 26... Nd4 {[%clk 0:00:07.8]} 27. Qd5 {[%clk 0:01:07.4]} 27... Nxb3
{[%clk 0:00:07.9]} 28. Qxb3 {[%clk 0:01:08.3]} 28... Rc7 {[%clk 0:00:06.1]} 29.
Red5 {[%clk 0:01:04.4]} 29... Kg7 {[%clk 0:00:04.8]} 30. a5 {[%clk 0:00:52.4]}
30... Rb8 {[%clk 0:00:04.4]} 31. Qd3 {[%clk 0:00:48.9]} 31... Qb7 {[%clk
0:00:03.2]} 32. b3 {[%clk 0:00:47.3]} 32... Rbc8 {[%clk 0:00:02.3]} 33. Qd4+
{[%clk 0:00:45.1]} 33... Kh6 {[%clk 0:00:02.9]} 34. g4 {[%clk 0:00:27.7]} 34...
Rxc2 {[%clk 0:00:02.1]} 35. Rh5+ {[%clk 0:00:24.7]} 35... gxh5 {[%clk
0:00:02.1]} 36. Qf6# {[%clk 0:00:24.8]} 1-0

[Event "Early-Titled-Tuesday-Blitz-January-30-2024"]
[Site "Chess.com"]
[Date "2024.01.30"]
[Round "1"]
[White "publicaccountcze"]
[Black "profedechess93"]
[Result "0-1"]
[WhiteElo "2306"]
[BlackElo "2634"]
[TimeControl "180+1"]
[EndTime "8:07:08 PST"]
[Termination "profedechess93 won on time"]

1. e4 {[%clk 0:03:00.9]} 1... e6 {[%clk 0:02:58.2]} 2. d3 {[%clk 0:03:00.5]}
2... d5 {[%clk 0:02:58.9]} 3. Qe2 {[%clk 0:03:01]} 3... Nf6 {[%clk 0:02:57.8]}
4. Nf3 {[%clk 0:03:01.3]} 4... b6 {[%clk 0:02:58.1]} 5. g3 {[%clk 0:03:01.3]}
5... Bb7 {[%clk 0:02:58.4]} 6. e5 {[%clk 0:03:01.6]} 6... Nfd7 {[%clk
0:02:58.6]} 7. Bg2 {[%clk 0:03:02]} 7... c5 {[%clk 0:02:59.3]} 8. O-O {[%clk
0:03:01.2]} 8... Nc6 {[%clk 0:03:00]} 9. c4 {[%clk 0:02:53.2]} 9... d4 {[%clk
0:02:55.7]} 10. Re1 {[%clk 0:02:46.7]} 10... Be7 {[%clk 0:02:53.9]} 11. h4
{[%clk 0:02:46.2]} 11... h6 {[%clk 0:02:53.3]} 12. Na3 {[%clk 0:02:33]} 12... a6
{[%clk 0:02:51]} 13. Nc2 {[%clk 0:02:32.5]} 13... Qc7 {[%clk 0:02:46.6]} 14. Bd2
{[%clk 0:02:31.5]} 14... O-O-O {[%clk 0:02:35.1]} 15. a3 {[%clk 0:02:27.5]}
15... Rdg8 {[%clk 0:02:33.1]} 16. b4 {[%clk 0:02:26.4]} 16... g5 {[%clk
0:02:33.6]} 17. hxg5 {[%clk 0:02:26.4]} 17... hxg5 {[%clk 0:02:33.2]} 18. g4
{[%clk 0:02:21.1]} 18... Nf8 {[%clk 0:02:04.2]} 19. bxc5 {[%clk 0:02:14.1]}
19... bxc5 {[%clk 0:02:05.1]} 20. Rab1 {[%clk 0:02:11.2]} 20... Ng6 {[%clk
0:02:03.7]} 21. Rb3 {[%clk 0:01:59.6]} 21... Nf4 {[%clk 0:01:46.2]} 22. Bxf4
{[%clk 0:00:58]} 22... gxf4 {[%clk 0:01:47.1]} 23. Reb1 {[%clk 0:00:58.1]} 23...
Ba8 {[%clk 0:01:35.5]} 24. Nd2 {[%clk 0:00:34.5]} 24... Rg5 {[%clk 0:01:23.7]}
25. f3 {[%clk 0:00:32.2]} 25... Rxe5 {[%clk 0:01:21.7]} 26. Ne4 {[%clk
0:00:30.9]} 26... f5 {[%clk 0:01:18.5]} 27. Qd2 {[%clk 0:00:13.8]} 27... fxe4
{[%clk 0:01:17.7]} 28. dxe4 {[%clk 0:00:14.7]} 28... Rg5 {[%clk 0:00:48]} 29.
Ne1 {[%clk 0:00:14.2]} 29... Rg7 {[%clk 0:00:43]} 30. Nd3 {[%clk 0:00:13.9]}
30... Rgh7 {[%clk 0:00:36.7]} 31. Nxf4 {[%clk 0:00:11.7]} 31... Bg5 {[%clk
0:00:33.3]} 32. Nxe6 {[%clk 0:00:05.4]} 32... Bxd2 {[%clk 0:00:32.8]} 33. Nxc7
{[%clk 0:00:05.7]} 33... Kxc7 {[%clk 0:00:31.2]} 34. Rd1 {[%clk 0:00:03]} 34...
Be3+ {[%clk 0:00:30.8]} 35. Kf1 {[%clk 0:00:02.8]} 35... Ne5 {[%clk 0:00:30.9]}
0-1

[Event "Early-Titled-Tuesday-Blitz-January-30-2024"]
[Site "Chess.com"]
[Date "2024.01.30"]
[Round "1"]
[White "Hikaru"]
[Black "Pelopidass"]
[Result "1-0"]
[WhiteElo "3303"]
[BlackElo "2551"]
[TimeControl "180+1"]
[EndTime "8:07:09 PST"]
[Termination "Hikaru won by resignation"]

1. Nf3 {[%clk 0:03:00.9]} 1... Nf6 {[%clk 0:02:59.8]} 2. b3 {[%clk 0:03:00.7]}
2... g6 {[%clk 0:02:57.5]} 3. d4 {[%clk 0:02:59.4]} 3... Bg7 {[%clk 0:02:57.3]}
4. Bb2 {[%clk 0:03:00]} 4... O-O {[%clk 0:02:56.2]} 5. e3 {[%clk 0:03:00.4]}
5... d6 {[%clk 0:02:55.4]} 6. Be2 {[%clk 0:03:00.7]} 6... a5 {[%clk 0:02:53.3]}
7. c4 {[%clk 0:03:00.6]} 7... Nc6 {[%clk 0:02:49.1]} 8. a3 {[%clk 0:03:00.3]}
8... Bg4 {[%clk 0:02:43.8]} 9. Nbd2 {[%clk 0:02:55.5]} 9... e5 {[%clk
0:02:33.7]} 10. dxe5 {[%clk 0:02:52.1]} 10... Nd7 {[%clk 0:02:33.4]} 11. O-O
{[%clk 0:02:52.2]} 11... dxe5 {[%clk 0:02:25.4]} 12. Ne4 {[%clk 0:02:15.6]}
12... h6 {[%clk 0:02:14.9]} 13. h3 {[%clk 0:01:57]} 13... Be6 {[%clk 0:02:14.3]}
14. Nc3 {[%clk 0:01:52.1]} 14... Nc5 {[%clk 0:02:10.6]} 15. Qc2 {[%clk
0:01:47.9]} 15... Qc8 {[%clk 0:01:34.5]} 16. Rad1 {[%clk 0:01:37.5]} 16... Kh7
{[%clk 0:01:22.6]} 17. Nd5 {[%clk 0:01:29.6]} 17... f5 {[%clk 0:01:08.4]} 18. b4
{[%clk 0:01:18.4]} 18... axb4 {[%clk 0:01:03.8]} 19. axb4 {[%clk 0:01:17.8]}
19... Na4 {[%clk 0:00:54.1]} 20. Ba1 {[%clk 0:00:54.3]} 20... Bxd5 {[%clk
0:00:43.8]} 21. cxd5 {[%clk 0:00:53.2]} 21... Nxb4 {[%clk 0:00:43.4]} 22. Qb3
{[%clk 0:00:46.4]} 22... c5 {[%clk 0:00:39.2]} 23. Nxe5 {[%clk 0:00:44.2]} 23...
Qe8 {[%clk 0:00:35.6]} 24. Nc4 {[%clk 0:00:42.9]} 24... Bxa1 {[%clk 0:00:30.6]}
25. Rxa1 {[%clk 0:00:43.8]} 25... Qd7 {[%clk 0:00:23.6]} 26. Rfd1 {[%clk
0:00:42]} 26... b5 {[%clk 0:00:21]} 27. Ne5 {[%clk 0:00:41.7]} 27... Qe8 {[%clk
0:00:18.7]} 28. Nc6 {[%clk 0:00:39.3]} 28... Nxc6 {[%clk 0:00:15.2]} 29. Bxb5
{[%clk 0:00:39.4]} 29... Qb8 {[%clk 0:00:09.1]} 30. dxc6 {[%clk 0:00:37.9]}
30... Nb6 {[%clk 0:00:09.1]} 31. Rac1 {[%clk 0:00:37.4]} 31... f4 {[%clk
0:00:05.9]} 32. Rxc5 {[%clk 0:00:36.4]} 32... fxe3 {[%clk 0:00:06.1]} 33. Qxe3
{[%clk 0:00:37.3]} 33... Qc7 {[%clk 0:00:04]} 34. Re5 {[%clk 0:00:37.6]} 34...
Rf7 {[%clk 0:00:03.6]} 35. Bd3 {[%clk 0:00:37.2]} 35... Raf8 {[%clk 0:00:03.9]}
36. Re6 {[%clk 0:00:37.8]} 36... Rg7 {[%clk 0:00:03.4]} 37. Bxg6+ {[%clk
0:00:36.4]} 37... Rxg6 {[%clk 0:00:03.2]} 38. Re7+ {[%clk 0:00:37]} 38... Rg7
{[%clk 0:00:02.9]} 39. Rxc7 {[%clk 0:00:37.2]} 39... Rxc7 {[%clk 0:00:03.8]} 40.
Qxb6 {[%clk 0:00:37.8]} 1-0

[Event "Early-Titled-Tuesday-Blitz-January-30-2024"]
[Site "Chess.com"]
[Date "2024.01.30"]
[Round "1"]
[White "aistrel"]
[Black "Binary010"]
[Result "0-1"]
[WhiteElo "2502"]
[BlackElo "2905"]
[TimeControl "180+1"]
[EndTime "8:07:10 PST"]
[Termination "Binary010 won by resignation"]

1. d4 {[%clk 0:03:00.9]} 1... Nf6 {[%clk 0:03:00]} 2. Nc3 {[%clk 0:02:59.8]}
2... d5 {[%clk 0:02:59.7]} 3. Bf4 {[%clk 0:02:59.3]} 3... c5 {[%clk 0:03:00]} 4.
e3 {[%clk 0:02:59.6]} 4... cxd4 {[%clk 0:02:59.4]} 5. exd4 {[%clk 0:03:00.5]}
5... a6 {[%clk 0:02:59.8]} 6. Nf3 {[%clk 0:03:00.3]} 6... Nc6 {[%clk 0:03:00.2]}
7. Ne5 {[%clk 0:03:00.6]} 7... Bd7 {[%clk 0:03:00.5]} 8. Nxc6 {[%clk 0:02:59.9]}
8... Bxc6 {[%clk 0:03:00.6]} 9. Be2 {[%clk 0:02:50.7]} 9... e6 {[%clk 0:03:00]}
10. O-O {[%clk 0:02:50.4]} 10... Bb4 {[%clk 0:02:56.1]} 11. Nb1 {[%clk
0:02:45.5]} 11... Ne4 {[%clk 0:02:53]} 12. Nd2 {[%clk 0:02:41.6]} 12... O-O
{[%clk 0:02:27.1]} 13. c3 {[%clk 0:02:37.5]} 13... Bd6 {[%clk 0:02:19.2]} 14.
Bxd6 {[%clk 0:02:37]} 14... Nxd6 {[%clk 0:02:19.6]} 15. Bd3 {[%clk 0:02:27.6]}
15... Bb5 {[%clk 0:01:59.2]} 16. Nf3 {[%clk 0:02:19.3]} 16... Bxd3 {[%clk
0:01:57.9]} 17. Qxd3 {[%clk 0:02:20.2]} 17... b5 {[%clk 0:01:58.4]} 18. a4
{[%clk 0:02:16.2]} 18... b4 {[%clk 0:01:52.6]} 19. cxb4 {[%clk 0:02:15.4]} 19...
Qb6 {[%clk 0:01:52.3]} 20. Ng5 {[%clk 0:01:22.9]} 20... g6 {[%clk 0:01:30.1]}
21. Qh3 {[%clk 0:01:17.3]} 21... h5 {[%clk 0:01:29.8]} 22. Rfd1 {[%clk
0:01:16.5]} 22... Kg7 {[%clk 0:01:18.3]} 23. Qg3 {[%clk 0:01:03.7]} 23... Nf5
{[%clk 0:01:05.1]} 24. Qe5+ {[%clk 0:01:01.3]} 24... Kg8 {[%clk 0:01:02.5]} 25.
h3 {[%clk 0:00:54.3]} 25... Qxb4 {[%clk 0:00:56.9]} 26. g4 {[%clk 0:00:54.4]}
26... hxg4 {[%clk 0:00:35.7]} 27. hxg4 {[%clk 0:00:55.3]} 27... Qe7 {[%clk
0:00:35.9]} 28. f4 {[%clk 0:00:47]} 28... Nh6 {[%clk 0:00:26.6]} 29. Qe2 {[%clk
0:00:39.8]} 29... Qf6 {[%clk 0:00:26.2]} 30. Qf3 {[%clk 0:00:32.1]} 30... Rac8
{[%clk 0:00:22.6]} 31. Rd2 {[%clk 0:00:29.9]} 31... Rc4 {[%clk 0:00:21.8]} 32.
Kg2 {[%clk 0:00:28.9]} 32... Rxd4 {[%clk 0:00:20.7]} 33. Rxd4 {[%clk 0:00:29.8]}
33... Qxd4 {[%clk 0:00:20.9]} 34. Rh1 {[%clk 0:00:30.7]} 34... Qxb2+ {[%clk
0:00:20.1]} 35. Kg1 {[%clk 0:00:26]} 35... Rc8 {[%clk 0:00:16.5]} 36. Rxh6
{[%clk 0:00:15.6]} 36... Rc1+ {[%clk 0:00:16]} 37. Qf1 {[%clk 0:00:16.5]} 37...
Qd4+ {[%clk 0:00:14.7]} 38. Kg2 {[%clk 0:00:17]} 38... Rxf1 {[%clk 0:00:15]} 39.
Kxf1 {[%clk 0:00:17.9]} 39... Qxf4+ {[%clk 0:00:15.2]} 0-1

[Event "Early-Titled-Tuesday-Blitz-January-30-2024"]
[Site "Chess.com"]
[Date "2024.01.30"]
[Round "1"]
[White "RaulPerezGuerra"]
[Black "sonicdravise"]
[Result "0-1"]
[WhiteElo "2214"]
[BlackElo "2606"]
[TimeControl "180+1"]
[EndTime "8:07:11 PST"]
[Termination "sonicdravise won by resignation"]

1. e4 {[%clk 0:03:00.9]} 1... g6 {[%clk 0:03:00.4]} 2. d4 {[%clk 0:03:00.1]}
2... Bg7 {[%clk 0:03:01]} 3. Bg5 {[%clk 0:03:00.1]} 3... d6 {[%clk 0:02:56.4]}
4. Nc3 {[%clk 0:02:59.4]} 4... a6 {[%clk 0:02:54.2]} 5. a4 {[%clk 0:02:58.4]}
5... Nd7 {[%clk 0:02:47.4]} 6. Nf3 {[%clk 0:02:58.3]} 6... c5 {[%clk 0:02:44.8]}
7. d5 {[%clk 0:02:56.9]} 7... Ngf6 {[%clk 0:02:43.6]} 8. Bd3 {[%clk 0:02:54.4]}
8... O-O {[%clk 0:02:43.1]} 9. Qd2 {[%clk 0:02:52.2]} 9... Rb8 {[%clk
0:02:38.3]} 10. O-O {[%clk 0:02:51.6]} 10... Ng4 {[%clk 0:02:24.4]} 11. h3
{[%clk 0:02:49.7]} 11... Nge5 {[%clk 0:02:24.5]} 12. Nxe5 {[%clk 0:02:50.3]}
12... Nxe5 {[%clk 0:02:24.5]} 13. Be2 {[%clk 0:02:49.2]} 13... f5 {[%clk
0:02:19]} 14. Bh6 {[%clk 0:02:41.9]} 14... Bxh6 {[%clk 0:02:13.8]} 15. Qxh6
{[%clk 0:02:42.8]} 15... f4 {[%clk 0:02:14.6]} 16. Qg5 {[%clk 0:02:29.6]} 16...
Kg7 {[%clk 0:01:43.8]} 17. Bg4 {[%clk 0:02:26.1]} 17... h6 {[%clk 0:01:10.9]}
18. Qh4 {[%clk 0:02:24.8]} 18... Bxg4 {[%clk 0:01:00.7]} 19. hxg4 {[%clk
0:02:25.7]} 19... f3 {[%clk 0:01:01.1]} 20. g3 {[%clk 0:02:25.2]} 20... Qd7
{[%clk 0:01:00.4]} 21. Nd1 {[%clk 0:01:55.6]} 21... g5 {[%clk 0:00:48.5]} 22.
Qh3 {[%clk 0:01:48]} 22... Qxg4 {[%clk 0:00:46.7]} 23. Qxg4 {[%clk 0:01:47.5]}
23... Nxg4 {[%clk 0:00:47.6]} 24. Ra3 {[%clk 0:01:44.7]} 24... Kg6 {[%clk
0:00:30.4]} 25. a5 {[%clk 0:01:42.9]} 25... h5 {[%clk 0:00:26.4]} 26. Ne3 {[%clk
0:01:36.6]} 26... Nxe3 {[%clk 0:00:26]} 27. Rxe3 {[%clk 0:01:37.5]} 27... g4
{[%clk 0:00:16.8]} 28. Rb1 {[%clk 0:01:32.7]} 28... h4 {[%clk 0:00:13.4]} 29.
gxh4 {[%clk 0:01:31.9]} 29... Rh8 {[%clk 0:00:13]} 30. Kf1 {[%clk 0:00:34.1]}
30... Rxh4 {[%clk 0:00:13.1]} 31. Ke1 {[%clk 0:00:35]} 31... Rh1+ {[%clk
0:00:13.4]} 32. Kd2 {[%clk 0:00:35.9]} 32... Rxb1 {[%clk 0:00:14]} 33. Kc3
{[%clk 0:00:36.8]} 33... Ra1 {[%clk 0:00:13]} 34. e5 {[%clk 0:00:35.1]} 34...
dxe5 {[%clk 0:00:12.6]} 35. Rxe5 {[%clk 0:00:35.2]} 35... Kf6 {[%clk 0:00:12.5]}
36. Re4 {[%clk 0:00:35.2]} 36... Rg8 {[%clk 0:00:10.2]} 37. b4 {[%clk
0:00:33.9]} 37... cxb4+ {[%clk 0:00:09.9]} 38. Rxb4 {[%clk 0:00:34.8]} 38...
Rxa5 {[%clk 0:00:09.4]} 39. Rxb7 {[%clk 0:00:34.4]} 39... Rxd5 {[%clk 0:00:10]}
40. Rb6+ {[%clk 0:00:35.1]} 40... Rd6 {[%clk 0:00:10.2]} 41. Rxa6 {[%clk
0:00:36]} 41... Rxa6 {[%clk 0:00:09.8]} 0-1

[Event "Early-Titled-Tuesday-Blitz-January-30-2024"]
[Site "Chess.com"]
[Date "2024.01.30"]
[Round "1"]
[White "KVAIDAN"]
[Black "vladgoncharov"]
[Result "1-0"]
[WhiteElo "2341"]
[BlackElo "2632"]
[TimeControl "180+1"]
[EndTime "8:07:12 PST"]
[Termination "KVAIDAN won on time"]

1. f4 {[%clk 0:03:00.9]} 1... Nf6 {[%clk 0:02:56.4]} 2. Nf3 {[%clk 0:03:00.3]}
2... g6 {[%clk 0:02:54.2]} 3. d3 {[%clk 0:02:59.9]} 3... d5 {[%clk 0:02:53.4]}
4. e3 {[%clk 0:03:00.1]} 4... Bg7 {[%clk 0:02:52.9]} 5. Be2 {[%clk 0:03:00.4]}
5... c5 {[%clk 0:02:51.4]} 6. O-O {[%clk 0:02:59.8]} 6... Nc6 {[%clk 0:02:50.8]}
7. Kh1 {[%clk 0:02:58.7]} 7... O-O {[%clk 0:02:47.4]} 8. a4 {[%clk 0:02:51.9]}
8... Re8 {[%clk 0:02:35.5]} 9. Ne5 {[%clk 0:02:50.2]} 9... Qc7 {[%clk
0:02:30.3]} 10. Nxc6 {[%clk 0:02:47.7]} 10... Qxc6 {[%clk 0:02:27.9]} 11. Nc3
{[%clk 0:02:48]} 11... d4 {[%clk 0:02:22.2]} 12. Nb5 {[%clk 0:02:41.6]} 12...
dxe3 {[%clk 0:02:06.5]} 13. Bf3 {[%clk 0:02:38.5]} 13... Qd7 {[%clk 0:02:04.4]}
14. Bxe3 {[%clk 0:02:38.9]} 14... a6 {[%clk 0:01:57.8]} 15. Na3 {[%clk
0:02:38.6]} 15... Nd5 {[%clk 0:01:41.5]} 16. Bxd5 {[%clk 0:02:33.1]} 16... Qxd5
{[%clk 0:01:40.7]} 17. Nc4 {[%clk 0:02:33.5]} 17... Rb8 {[%clk 0:01:29.7]} 18.
a5 {[%clk 0:02:32.1]} 18... Be6 {[%clk 0:01:21.3]} 19. Rb1 {[%clk 0:02:24.4]}
19... Qc6 {[%clk 0:01:12]} 20. Ne5 {[%clk 0:02:15.7]} 20... Qc7 {[%clk
0:00:57.3]} 21. Qf3 {[%clk 0:02:07.9]} 21... Qxa5 {[%clk 0:00:50.9]} 22. c3
{[%clk 0:01:55.9]} 22... Qc7 {[%clk 0:00:47]} 23. Qf2 {[%clk 0:01:53.9]} 23...
b6 {[%clk 0:00:46.2]} 24. b4 {[%clk 0:01:52.5]} 24... cxb4 {[%clk 0:00:45]} 25.
Rxb4 {[%clk 0:01:52.6]} 25... b5 {[%clk 0:00:45.2]} 26. c4 {[%clk 0:01:42.3]}
26... Qd6 {[%clk 0:00:31.1]} 27. Bc5 {[%clk 0:01:40.6]} 27... Qc7 {[%clk
0:00:30.7]} 28. cxb5 {[%clk 0:01:35.9]} 28... Rxb5 {[%clk 0:00:29.6]} 29. Rxb5
{[%clk 0:01:35.9]} 29... axb5 {[%clk 0:00:30.3]} 30. d4 {[%clk 0:01:36.3]} 30...
Rb8 {[%clk 0:00:25.5]} 31. Qb2 {[%clk 0:01:32.3]} 31... Bd5 {[%clk 0:00:22]} 32.
Qb4 {[%clk 0:01:31]} 32... Rb7 {[%clk 0:00:16.1]} 33. Re1 {[%clk 0:01:20.7]}
33... h5 {[%clk 0:00:08.6]} 34. h3 {[%clk 0:01:19]} 34... Qc8 {[%clk 0:00:07.5]}
35. Kg1 {[%clk 0:01:19.2]} 35... Qf5 {[%clk 0:00:06.3]} 36. Qd2 {[%clk
0:01:13.7]} 36... b4 {[%clk 0:00:05.4]} 37. Bxb4 {[%clk 0:01:12.7]} 37... Rxb4
{[%clk 0:00:04.8]} 38. Qxb4 {[%clk 0:01:12.6]} 38... Qc2 {[%clk 0:00:05.1]} 39.
Nf3 {[%clk 0:01:06.4]} 39... Bxf3 {[%clk 0:00:02.5]} 40. gxf3 {[%clk 0:01:06.6]}
40... e6 {[%clk 0:00:02.8]} 41. Kf1 {[%clk 0:00:56.2]} 41... Qf5 {[%clk
0:00:02.6]} 42. Qd6 {[%clk 0:00:53.1]} 42... Qxh3+ {[%clk 0:00:01.5]} 43. Ke2
{[%clk 0:00:53.5]} 43... Qg2+ {[%clk 0:00:01.3]} 44. Ke3 {[%clk 0:00:53.9]}
44... h4 {[%clk 0:00:01.3]} 45. Qd8+ {[%clk 0:00:52.3]} 1-0

[Event "Early-Titled-Tuesday-Blitz-January-30-2024"]
[Site "Chess.com"]
[Date "2024.01.30"]
[Round "1"]
[White "MatthewG-p4p"]
[Black "WPWPWP-2015"]
[Result "1-0"]
[WhiteElo "2874"]
[BlackElo "2486"]
[TimeControl "180+1"]
[EndTime "8:07:13 PST"]
[Termination "MatthewG-p4p won on time"]

1. e4 {[%clk 0:03:00.9]} 1... e5 {[%clk 0:02:59.4]} 2. Nf3 {[%clk 0:02:59.4]}
2... Nc6 {[%clk 0:02:58.8]} 3. d4 {[%clk 0:02:59.5]} 3... exd4 {[%clk
0:02:58.1]} 4. c3 {[%clk 0:03:00.2]} 4... d3 {[%clk 0:02:56.5]} 5. Bxd3 {[%clk
0:02:47.8]} 5... d6 {[%clk 0:02:51.5]} 6. O-O {[%clk 0:02:47]} 6... Nf6 {[%clk
0:02:40.6]} 7. Re1 {[%clk 0:02:43.1]} 7... Be7 {[%clk 0:02:39.4]} 8. h3 {[%clk
0:02:41.2]} 8... O-O {[%clk 0:02:38.4]} 9. Bg5 {[%clk 0:02:35]} 9... h6 {[%clk
0:02:32.6]} 10. Bh4 {[%clk 0:02:34.7]} 10... Ne5 {[%clk 0:02:26.7]} 11. Bc2
{[%clk 0:02:28.3]} 11... Re8 {[%clk 0:02:20.4]} 12. Nbd2 {[%clk 0:02:25.9]}
12... c6 {[%clk 0:02:08.9]} 13. Nxe5 {[%clk 0:02:03.1]} 13... dxe5 {[%clk
0:02:08.3]} 14. Nc4 {[%clk 0:02:03.5]} 14... Qc7 {[%clk 0:02:00.5]} 15. Bg3
{[%clk 0:02:03.5]} 15... Nd7 {[%clk 0:01:59.4]} 16. Qh5 {[%clk 0:02:03.2]} 16...
Bf6 {[%clk 0:01:54.8]} 17. Rad1 {[%clk 0:01:47.1]} 17... Re6 {[%clk 0:01:47.7]}
18. Ne3 {[%clk 0:01:38.5]} 18... Bg5 {[%clk 0:01:38.8]} 19. Bb3 {[%clk
0:01:34.2]} 19... Nf6 {[%clk 0:01:31.1]} 20. Qf3 {[%clk 0:01:27.9]} 20... Re8
{[%clk 0:01:29.6]} 21. Nf5 {[%clk 0:01:24.6]} 21... Be6 {[%clk 0:01:14.8]} 22.
h4 {[%clk 0:00:55.2]} 22... Bf4 {[%clk 0:01:02.9]} 23. Bxf4 {[%clk 0:00:55.5]}
23... exf4 {[%clk 0:01:00.4]} 24. Nd6 {[%clk 0:00:55.8]} 24... Bg4 {[%clk
0:00:50]} 25. Qxf4 {[%clk 0:00:41.6]} 25... Bxd1 {[%clk 0:00:46.4]} 26. Bxf7+
{[%clk 0:00:41.5]} 26... Kh8 {[%clk 0:00:41.1]} 27. Bxe8 {[%clk 0:00:39.8]}
27... Rxe8 {[%clk 0:00:29.3]} 28. Rxd1 {[%clk 0:00:34]} 28... Rxe4 {[%clk
0:00:28.1]} 29. Qf5 {[%clk 0:00:20.8]} 29... Re2 {[%clk 0:00:14.2]} 30. Qg6
{[%clk 0:00:18.1]} 30... Kg8 {[%clk 0:00:13.5]} 31. Nf5 {[%clk 0:00:17.7]} 31...
Qf7 {[%clk 0:00:12.6]} 32. Nxh6+ {[%clk 0:00:16.9]} 1-0